bitfinex-derivatives/quotes_SOLF0:USTF0_20251006
["timestamp","ask_amount","ask_price","bid_price","bid_amount"]
[1759713918188,3.00961668,230.66,230.5,60.7168]
[1759713918388,8.01,230.61,230.5,60.7188]
[1759713918584,86.84,230.6,230.53,7.59]
[1759713918779,86.84,230.59,230.51,60.716]
[1759713919086,8.01,230.57,230.54,3.9026]
[1759713919287,113.64,230.56,230.54,3.9026]
[1759713920381,113.64,230.55,230.54,3.9026]
[1759713920782,8.01,230.62,230.54,3.9026]
[1759713921095,8.01,230.6,230.54,60.7074]
[1759713921389,98.18,230.61,230.55,3.69417455]
[1759713921584,98.18,230.61,230.56,3.69417455]
[1759713921890,8.01,230.6,230.57,3.69417455]
[1759713922090,8.01,230.6,230.58,3.69417455]
[1759713922290,8.01,230.6,230.59,3.69417455]
[1759713922888,121.45,230.6,230.59,3.69417455]
[1759713923493,8.01,230.6,230.59,3.69417455]
[1759713923991,121.39,230.6,230.59,3.69417455]
[1759713924188,315.52,230.64,230.59,3.69417455]
[1759713924382,8.01,230.62,230.6,3.69417455]
[1759713924581,8.01,230.62,230.61,3.69417455]
[1759713924786,121.33,230.62,230.61,3.69417455]
[1759713925295,121.77,230.62,230.49,60.7217]
[1759713925482,121.33,230.62,230.49,60.7217]
[1759713925786,121.33,230.62,230.54,3.9026]
[1759713925981,6.05,230.61,230.48,60.7242]
[1759713926384,6.05,230.61,230.5,60.7191]
[1759713926590,113.24,230.6,230.52,60.7131]
[1759713927089,113.24,230.6,230.56,3.9023]
[1759713927791,6.05,230.59,230.53,3.9027]
[1759713927985,113.16,230.58,230.5,60.7191]
[1759713928390,6.05,230.57,230.54,3.9025]
[1759713928592,113.14,230.56,230.54,3.9025]
[1759713928892,6.05,230.55,230.54,3.9025]
[1759713929792,6.05,230.55,230.51,3.903]
[1759713929984,113.14,230.56,230.51,3.903]
[1759713930184,6.05,230.55,230.44,60.7333]
[1759713930385,6.05,230.55,230.48,3.9035]
[1759713930587,6.05,230.55,230.47,60.7267]
[1759713930785,72.78,230.54,230.5,68.3091]
[1759713930986,72.8,230.53,230.5,7.59]
[1759713931195,113.02,230.52,230.51,3.9032]
[1759713931794,105.9075,230.52,230.51,3.9032]
[1759713932387,105.9075,230.52,230.51,11.4932]
[1759713932790,6.05,230.6,230.56,3.9023]
[1759713932995,315.52,230.64,230.51,68.3053]
[1759713932996,118.95,230.59,230.51,68.3053]
[1759713933593,6.05,230.59,230.51,68.3053]
[1759713933795,112.88,230.58,230.51,68.3053]
[1759713934592,112.88,230.57,230.55,3.9025]
[1759713935093,112.88,230.57,230.5,3.9033]
[1759713935394,112.88,230.57,230.48,4.86461177]
[1759713936400,112.88,230.57,230.51,3.903]
[1759713936593,6.05,230.58,230.49,4.86461177]
[1759713936798,90.32,230.57,230.49,4.86461177]
[1759713937296,3.9015,230.62,230.53,3.9028]
[1759713937496,6.05,230.61,230.53,3.9028]
[1759713937899,112.64,230.6,230.53,3.9028]
[1759713938101,6.05,230.59,230.55,3.9024]
[1759713938301,112.64,230.59,230.55,3.9024]
[1759713938502,112.6,230.58,230.51,4.86461177]
[1759713938700,6.05,230.57,230.5,4.86461177]
[1759713939302,6.05,230.57,230.52,3.903]
[1759713939500,118.65,230.58,230.52,3.903]
[1759713941305,112.5,230.57,230.51,4.86461177]
[1759713942203,112.5,230.57,230.54,3.9025]
[1759713942704,3.9015,230.62,230.54,3.9025]
[1759713942906,118.35,230.61,230.54,3.9025]
[1759713943904,122.2516,230.61,230.54,3.9025]
[1759713945208,112.18,230.6,230.54,3.9025]
[1759713945404,6.05,230.62,230.52,60.7137]
[1759713945610,112.14,230.61,230.54,60.708]
[1759713945811,112.14,230.61,230.52,65.57831177]
[1759713946404,112.12,230.6,230.59,3.9018]
[1759713946606,6.05,230.63,230.58,60.6978]
[1759713946805,112.14,230.62,230.58,8.05]
[1759713947021,112.14,230.62,230.61,3.9015]
[1759713948115,112.1,230.62,230.57,60.6999]
[1759713948310,112.06,230.61,230.58,7.99]
[1759713948503,112.06,230.61,230.56,60.7033]
[1759713948709,112.06,230.61,230.56,68.6933]
[1759713948903,315.52,230.64,230.61,3.9015]
[1759713949107,118.04,230.63,230.61,3.9015]
[1759713950213,6.04,230.62,230.58,3.9018]
[1759713950412,6.04,230.62,230.56,7.99]
[1759713951110,111.88,230.61,230.6,3.9015]
[1759713951310,111.86,230.61,230.6,3.9015]
[1759713951806,315.52,230.64,230.63,3.9011]
[1759713952008,6.04,230.71,230.63,60.6846]
[1759713952212,111.84,230.7,230.61,60.6901]
[1759713952614,6.04,230.69,230.67,3.9004]
[1759713952915,111.84,230.7,230.67,3.9004]
[1759713953215,111.84,230.7,230.65,3.9008]
[1759713953416,117.88,230.7,230.65,3.9008]
[1759713953715,111.84,230.7,230.65,3.9008]
[1759713954115,6.04,230.69,230.65,3.9008]
[1759713954314,111.84,230.7,230.65,3.9008]
[1759713954615,6.04,230.69,230.65,3.9008]
[1759713955413,6.04,230.71,230.66,3.9005]
[1759713955617,6.04,230.72,230.64,68.6722]
[1759713955813,111.62,230.71,230.64,68.6722]
[1759713956210,111.62,230.71,230.66,3.9006]
[1759713956410,111.62,230.71,230.61,68.6801]
[1759713956411,6.04,230.7,230.61,7.99]
[1759713956919,6.04,230.7,230.63,3.901]
[1759713958712,111.64,230.69,230.63,3.901]
[1759713958909,6.04,230.72,230.6,3.9015]
[1759713959212,6.04,230.7,230.57,11.5550691]
[1759713960019,116.54927419,230.71,230.57,11.5550691]
[1759713960216,6.04,230.68,230.58,3.5650691]
[1759713961019,6.04,230.68,230.57,11.5550691]
[1759713961219,89.04,230.67,230.59,3.5650691]
[1759713961621,89.04,230.67,230.6,3.9015]
[1759713962417,92.9406,230.67,230.59,3.5650691]
[1759713963316,3.9009,230.65,230.59,3.5650691]
[1759713963617,6.04,230.66,230.58,3.5650691]
[1759713963819,6.04,230.66,230.59,3.9018]
[1759713964218,111.3,230.65,230.59,3.9018]
[1759713964723,111.28,230.64,230.59,3.9018]
[1759713965218,432.94,230.64,230.57,7.4671691]
[1759713966414,111.16,230.63,230.57,7.4671691]
[1759713966617,6.04,230.62,230.58,3.9018]
[1759713967218,6.04,230.63,230.58,3.9018]
[1759713967415,111.12,230.62,230.58,11.8918]
[1759713967823,315.62,230.64,230.57,64.2657691]
[1759713968123,315.62,230.64,230.53,60.71]
[1759713968124,111.1,230.63,230.59,3.5650691]
[1759713968324,6.04,230.66,230.59,3.5650691]
[1759713968325,6.04,230.66,230.6,7.99]
[1759713968524,6.04,230.66,230.61,7.99]
[1759713968525,111.12,230.65,230.61,7.99]
[1759713969426,117.16,230.65,230.61,7.99]
[1759713969625,6.04,230.65,230.62,3.9012]
[1759713969925,111.04,230.64,230.62,3.9012]
[1759713970323,6.04,230.65,230.62,3.9012]
[1759713970627,111.02,230.64,230.62,3.9012]
[1759713970827,6.04,230.65,230.62,3.9012]
[1759713971024,110.98,230.64,230.62,3.9012]
[1759713971226,110.98,230.64,230.59,3.5650691]
[1759713971537,6.04,230.63,230.57,3.5650691]
[1759713971728,6.04,230.63,230.56,3.5650691]
[1759713972334,6.04,230.63,230.55,3.5650691]
[1759713972732,6.04,230.63,230.55,7.4674691]
[1759713973136,426.56,230.62,230.55,7.4674691]
[1759713974140,6.04,230.63,230.55,3.5650691]
[1759713974141,321.68,230.63,230.55,3.5650691]
[1759713974337,315.64,230.63,230.6,11.5550691]
[1759713974538,6.04,230.68,230.6,11.5550691]
[1759713974843,110.98,230.67,230.6,11.5550691]
[1759713975044,110.98,230.67,230.61,3.9013]
[1759713975244,110.98,230.67,230.6,7.99]
[1759713975743,110.98,230.67,230.61,3.9013]
[1759713976141,110.98,230.67,230.62,3.9011]
[1759713976341,6.04,230.66,230.62,3.9011]
[1759713976944,110.98,230.67,230.62,3.9011]
[1759713977144,6.04,230.66,230.62,3.9011]
[1759713978647,110.98,230.67,230.62,3.9011]
[1759713979239,6.04,230.66,230.62,3.9011]
[1759713979441,116.8,230.65,230.6,3.9016]
[1759713979648,110.76,230.65,230.6,3.9016]
[1759713980150,6.04,230.64,230.6,3.9016]
[1759713982354,116.8,230.65,230.58,3.5650691]
[1759713982952,116.8,230.65,230.58,7.4668691]
[1759713983256,116.8,230.65,230.58,3.5650691]
[1759713983846,6.04,230.64,230.58,3.5650691]
[1759713984553,6.04,230.64,230.58,7.4668691]
[1759713984953,6.04,230.64,230.58,3.5650691]
[1759713985248,110.76,230.65,230.6,3.9016]
[1759713985450,6.04,230.64,230.6,3.9016]
[1759713985650,110.76,230.65,230.6,3.9016]
[1759713986152,6.04,230.64,230.61,3.9013]
[1759713986655,110.4,230.63,230.61,3.9013]
[1759713987454,6.04,230.62,230.59,3.9018]
[1759713988147,110.4,230.63,230.59,3.9018]
[1759713988464,6.04,230.62,230.59,3.9018]
[1759713989155,6.04,230.67,230.59,10.9250691]
[1759713989347,23.96,230.66,230.61,10.9250691]
[1759713989547,315.64,230.7,230.61,10.9250691]
[1759713989548,6.04,230.7,230.66,3.9006]
[1759713989759,110.32,230.69,230.66,3.9006]
[1759713989952,110.32,230.68,230.66,3.9006]
[1759713990152,12.75213681,230.75,230.66,3.9006]
[1759713990153,6.04,230.71,230.66,3.9006]
[1759713990353,6.04,230.69,230.66,3.9006]
[1759713990554,6.04,230.69,230.67,3.41450525]
[1759713990750,6.04,230.71,230.68,3.41450525]
[1759713990955,6.04,230.71,230.69,3.41585456]
[1759713991160,110.28,230.7,230.64,7.48655046]
[1759713991355,6.04,230.69,230.65,3.41642144]
[1759713991652,315.64,230.72,230.64,3.901]
[1759713991653,116.32,230.68,230.66,3.41642144]
[1759713991957,116.32,230.68,230.67,3.41642144]
[1759713992461,6.04,230.68,230.67,3.41642144]
[1759713992662,315.62,230.73,230.67,7.31672144]
[1759713992857,110.18,230.72,230.68,3.41642144]
[1759713993162,6.04,230.7,230.69,3.41642144]
[1759713993555,116.22,230.7,230.69,3.41642144]
[1759713993757,6.04,230.7,230.69,3.41642144]
[1759713993958,116.18,230.7,230.69,3.41642144]
[1759713994563,6.04,230.76,230.69,3.41642144]
[1759713994763,6.04,230.74,230.7,3.41642144]
[1759713994962,110.14,230.75,230.71,3.41642144]
[1759713995166,6.04,230.74,230.69,11.2601]
[1759713995464,110.14,230.73,230.7,10.77271555]
[1759713995654,110.14,230.73,230.71,7.31241555]
[1759713995956,6.04,230.74,230.72,3.41271555]
[1759713996163,110.1,230.73,230.7,7.36]
[1759713996357,110.08,230.72,230.71,3.41085608]
[1759713996965,110.06,230.72,230.71,3.41085608]
[1759713997259,6.04,230.76,230.71,10.77085608]
[1759713997463,315.6,230.77,230.67,3.58555046]
[1759713997464,110.04,230.75,230.72,10.77085608]
[1759713997657,110.04,230.75,230.73,3.41085608]
[1759713997861,110.04,230.75,230.74,3.41085608]
[1759713998661,110.06,230.75,230.74,3.41085608]
[1759713999365,110.06,230.75,230.71,11.7696]
[1759713999564,6.04,230.79,230.72,3.40577269]
[1759713999764,429.4786,230.78,230.73,3.40577269]
[1759713999964,6.04,230.76,230.68,7.48585046]
[1759714000160,6.04,230.76,230.69,3.4059599]
[1759714000357,9.939,230.76,230.7,3.4059599]
[1759714000558,60.6541,230.75,230.63,11.45555046]
[1759714000760,6.04,230.73,230.64,3.40713789]
[1759714001067,6.04,230.69,230.65,3.40713789]
[1759714001365,116.16,230.68,230.66,3.40713789]
[1759714001667,116.16,230.67,230.62,3.58555046]
[1759714001859,116.16,230.67,230.63,3.4074914]
[1759714002059,6.04,230.67,230.64,3.4074914]
[1759714002266,6.04,230.67,230.65,3.4074914]
[1759714002559,72.94,230.66,230.62,11.45555046]
[1759714002764,72.94,230.66,230.63,3.40731591]
[1759714002967,72.94,230.66,230.64,3.40731591]
[1759714003166,6.04,230.67,230.65,3.40731591]
[1759714003364,6.04,230.76,230.66,3.40709463]
[1759714003563,60.6456,230.78,230.67,3.40709463]
[1759714003768,431.6,230.77,230.68,3.40709463]
[1759714003968,431.6,230.77,230.65,3.9008]
[1759714004262,431.6,230.77,230.66,3.4070475]
[1759714004466,6.04,230.74,230.67,7.3075475]
[1759714004659,6.04,230.74,230.68,3.4070475]
[1759714004860,6.04,230.74,230.67,3.9005]
[1759714005061,6.04,230.74,230.68,3.40794002]
[1759714005262,6.04,230.74,230.67,3.9005]
[1759714005472,6.04,230.74,230.68,3.4079936]
[1759714005673,6.04,230.72,230.69,3.4079936]
[1759714005966,6.04,230.77,230.7,3.40750413]
[1759714006168,6.04,230.75,230.71,3.40750413]
[1759714006364,109.94,230.74,230.65,3.58555046]
[1759714006672,109.94,230.74,230.68,3.9002]
[1759714006870,115.98,230.74,230.69,3.40678928]
[1759714007067,109.94,230.74,230.7,3.40678928]
[1759714007264,6.04,230.73,230.71,3.40678928]
[1759714007463,6.04,230.73,230.68,3.9002]
[1759714007667,6.04,230.73,230.69,3.40618895]
[1759714007975,109.9,230.72,230.7,3.40618895]
[1759714008174,6.04,230.73,230.71,3.40618895]
[1759714008370,109.88,230.72,230.68,11.8502]
[1759714008581,109.88,230.72,230.69,3.40536217]
[1759714008777,109.88,230.72,230.7,3.40536217]
[1759714009075,6.04,230.73,230.71,3.40527693]
[1759714009275,109.82,230.72,230.69,7.95]
[1759714009581,109.82,230.72,230.7,3.40489253]
[1759714009771,109.82,230.72,230.68,11.8502]
[1759714009971,109.82,230.72,230.69,3.40559894]
[1759714010179,109.82,230.71,230.7,3.40559894]
[1759714010372,109.76,230.71,230.7,3.40559894]
[1759714010682,109.76,230.71,230.7,3.40561039]
[1759714012067,109.74,230.71,230.7,3.40561039]
[1759714013174,109.64,230.71,230.7,3.40561039]
[1759714013569,6.04,230.76,230.7,3.40561039]
[1759714013769,109.62,230.75,230.71,3.40561039]
[1759714013970,115.66,230.75,230.69,3.9]
[1759714014171,6.04,230.74,230.7,3.40403763]
[1759714014378,115.66,230.75,230.69,3.9]
[1759714014574,3.899,230.76,230.7,3.40409542]
[1759714014780,6.04,230.73,230.65,7.95]
[1759714015078,109.58,230.72,230.66,3.40500382]
[1759714015280,6.04,230.73,230.67,11.35500382]
[1759714015480,109.6,230.72,230.68,11.35500382]
[1759714015675,109.6,230.71,230.69,3.40500382]
[1759714015882,109.6,230.71,230.7,3.40500382]
[1759714016085,115.64,230.71,230.7,3.40500382]
[1759714016581,6.04,230.71,230.7,3.40500382]
[1759714016778,109.58,230.71,230.7,3.40500382]
[1759714017281,109.58,230.71,230.7,3.40800627]
[1759714017483,109.58,230.71,230.66,3.9005]
[1759714017678,109.58,230.71,230.67,7.30857262]
[1759714017874,115.62,230.71,230.68,3.40827262]
[1759714018078,115.62,230.71,230.69,3.40827262]
[1759714018278,115.62,230.71,230.7,3.40827262]
[1759714018881,115.52,230.71,230.7,3.40827262]
[1759714019186,6.04,230.71,230.7,3.40827262]
[1759714019384,115.5,230.71,230.7,3.40827262]
[1759714020287,109.46,230.71,230.67,3.9004]
[1759714020483,109.46,230.71,230.68,3.40943943]
[1759714020690,6.04,230.7,230.69,3.40943943]
[1759714020890,6.04,230.75,230.69,7.30953943]
[1759714021090,6.04,230.73,230.7,3.40943943]
[1759714021384,6.04,230.73,230.69,3.9001]
[1759714021588,6.04,230.73,230.7,7.30504421]
[1759714021789,109.34,230.72,230.7,3.8998]
[1759714021981,6.04,230.73,230.71,3.40386941]
[1759714022181,6.04,230.78,230.72,3.40386941]
[1759714022486,109.34,230.77,230.73,11.35273885]
[1759714022688,115.38,230.77,230.73,7.95]
[1759714022879,6.04,230.77,230.74,3.40253231]
[1759714023078,109.36,230.76,230.73,7.95]
[1759714023278,115.4,230.76,230.68,3.58555046]
[1759714023486,115.4,230.76,230.69,3.40255251]
[1759714023793,115.4,230.76,230.66,3.58555046]
[1759714023794,115.4,230.76,230.7,3.40255251]
[1759714023995,6.04,230.75,230.66,3.9005]
[1759714024192,109.36,230.74,230.67,3.40363273]
[1759714024394,109.36,230.74,230.68,3.40363273]
[1759714024595,319.69232851,230.8,230.69,3.40363273]
[1759714024794,3.8988,230.77,230.7,3.40363273]
[1759714024991,1.25093035,230.72,230.65,11.8508]
[1759714025290,6.04,230.74,230.66,11.35435911]
[1759714025490,319.69232851,230.8,230.68,7.95]
[1759714025491,109.42,230.73,230.68,7.95]
[1759714025792,109.48,230.72,230.7,7.95]
[1759714025998,109.48,230.72,230.71,3.40435911]
[1759714027796,109.46,230.72,230.71,3.40435911]
[1759714027991,10.21232851,230.8,230.71,11.35435911]
[1759714028191,109.4,230.79,230.73,3.8994]
[1759714028498,6.04,230.78,230.74,3.40435911]
[1759714028698,109.42,230.77,230.73,3.8994]
[1759714028894,4.17232851,230.8,230.74,3.40458348]
[1759714029100,22.96,230.79,230.75,3.4041356]
[1759714029304,22.96,230.79,230.76,3.4041356]
[1759714029492,22.96,230.79,230.72,7.95]
[1759714029697,22.96,230.79,230.73,3.40404054]
[1759714029901,22.96,230.79,230.74,11.35404054]
[1759714030094,6.04,230.78,230.75,3.40404054]
[1759714030293,6.04,230.78,230.73,3.8994]
[1759714030497,6.04,230.78,230.74,3.40403787]
[1759714030701,6.04,230.78,230.75,3.40403787]
[1759714030904,109.6,230.77,230.75,3.8991]
[1759714031099,4.17232851,230.8,230.76,3.40401917]
[1759714031294,109.56,230.79,230.72,1.25093035]
[1759714031502,1.25093035,230.88,230.77,60.6473]
[1759714031799,1.25093035,230.88,230.76,7.95]
[1759714031800,115.96,230.87,230.78,3.40438854]
[1759714032007,115.96,230.87,230.79,3.40438854]
[1759714032201,109.92,230.86,230.78,3.8986]
[1759714032405,109.92,230.86,230.79,3.40277471]
[1759714032601,109.92,230.86,230.78,3.8986]
[1759714032907,109.92,230.86,230.8,3.8983]
[1759714033103,6.04,230.87,230.8,3.8983]
[1759714033407,6.04,230.85,230.8,3.8983]
[1759714033595,109.84,230.84,230.8,3.8983]
[1759714033802,109.82,230.83,230.82,3.8979]
[1759714034003,109.82,230.83,230.82,15.24990486]
[1759714034295,109.82,230.83,230.82,15.24818398]
[1759714034505,6.04,230.92,230.86,3.8972]
[1759714034704,109.96,230.91,230.87,3.39801217]
[1759714034899,109.96,230.91,230.86,3.8972]
[1759714035104,116.0,230.91,230.87,3.3977794]
[1759714035404,116.0,230.91,230.86,3.8972]
[1759714035804,116.0,230.91,230.83,3.8977]
[1759714035805,117.25093035,230.91,230.83,3.8977]
[1759714035999,117.25093035,230.91,230.84,3.39491375]
[1759714036197,117.25093035,230.91,230.85,3.39491375]
[1759714036397,117.25093035,230.91,230.83,3.8977]
[1759714036711,117.25093035,230.91,230.84,3.39251642]
[1759714036899,117.25093035,230.91,230.85,3.39251642]
[1759714037103,117.25093035,230.91,230.82,7.95]
[1759714037303,109.88,230.9,230.83,3.39157834]
[1759714037497,109.88,230.9,230.82,7.95]
[1759714037698,109.88,230.9,230.83,3.39149499]
[1759714037900,109.88,230.9,230.82,7.95]
[1759714038109,1.25093035,230.89,230.83,3.39149937]
[1759714038310,1.25093035,230.89,230.82,7.95]
[1759714038504,72.36,230.88,230.83,3.39013119]
[1759714038704,72.36,230.88,230.77,7.88]
[1759714038705,1.25093035,230.86,230.77,7.88]
[1759714038905,6.04,230.85,230.78,3.39133772]
[1759714039104,6.04,230.85,230.79,3.39133772]
[1759714039410,6.04,230.85,230.8,3.39257204]
[1759714039617,61.44,230.84,230.76,7.88]
[1759714039803,61.44,230.84,230.77,3.39389849]
[1759714040004,61.44,230.84,230.78,3.39389849]
[1759714040207,6.04,230.83,230.79,3.39389849]
[1759714040402,103.92,230.82,230.8,3.39413987]
[1759714040606,103.92,230.82,230.76,11.7788]
[1759714040801,109.96,230.82,230.77,3.39423101]
[1759714041006,109.96,230.82,230.78,3.39423101]
[1759714041309,109.96,230.82,230.79,3.39423101]
[1759714041511,109.96,230.82,230.74,3.58555046]
[1759714041710,109.96,230.82,230.75,3.39316368]
[1759714042013,109.96,230.82,230.76,3.39316368]
[1759714042208,109.96,230.82,230.77,3.39316368]
[1759714042409,109.96,230.82,230.78,3.39316368]
[1759714042712,109.96,230.82,230.79,3.39316368]
[1759714042909,109.96,230.82,230.76,3.8989]
[1759714043111,60.5935,230.98,230.78,7.88]
[1759714043311,6.04,230.88,230.79,3.39273757]
[1759714043510,1.25093035,230.86,230.8,3.39273757]
[1759714043710,1.25093035,230.86,230.78,7.88]
[1759714043912,1.25093035,230.86,230.79,3.39148351]
[1759714044213,1.25093035,230.86,230.8,3.39148351]
[1759714044411,1.25093035,230.86,230.78,7.88]
[1759714044711,1.25093035,230.86,230.8,3.8981]
[1759714044900,109.7,230.85,230.8,3.8981]
[1759714045209,6.04,230.84,230.8,3.8981]
[1759714045608,60.6015,230.95,230.77,7.88]
[1759714045609,109.64,230.88,230.81,11.26988399]
[1759714045808,109.64,230.88,230.82,3.38921678]
[1759714046010,109.64,230.88,230.81,7.88]
[1759714046210,6.04,230.9,230.82,3.38916012]
[1759714046512,57.18,230.89,230.81,7.88]
[1759714046711,57.18,230.89,230.83,3.8976]
[1759714047602,1.25093035,230.9,230.83,3.8976]
[1759714047802,315.38,230.98,230.82,60.6347]
[1759714048006,7.29093035,230.94,230.83,3.38746394]
[1759714048212,7.29093035,230.94,230.82,60.6347]
[1759714048508,6.04,230.94,230.86,60.6238]
[1759714049107,109.56,230.95,230.9,3.8965]
[1759714049306,109.56,230.95,230.84,7.88]
[1759714049307,6.04,230.94,230.84,7.88]
[1759714049710,6.04,230.9,230.79,7.88]
[1759714050009,1.25093035,230.89,230.8,3.38653844]
[1759714050212,26.66,230.88,230.84,3.8974]
[1759714050408,26.66,230.88,230.84,11.7774]
[1759714050604,3.8954,230.98,230.89,3.8967]
[1759714050807,7.29093035,230.97,230.87,7.88]
[1759714051116,116.93093035,230.97,230.87,7.88]
[1759714051704,116.93093035,230.97,230.9,3.8964]
[1759714052113,109.62,230.96,230.9,3.8964]
[1759714052313,110.87093035,230.96,230.9,3.8964]
[1759714052514,1.25093035,230.95,230.88,3.8968]
[1759714052913,6.04,230.94,230.88,3.8968]
[1759714053116,109.56,230.93,230.88,3.8968]
[1759714053314,115.59,230.93,230.88,3.8968]
[1759714053511,1.25093035,230.91,230.86,3.8972]
[1759714053820,6.03,230.9,230.83,7.88]
[1759714054018,6.03,230.9,230.84,3.8976]
[1759714056110,6.03,230.87,230.77,60.6466]
[1759714056418,6.03,230.93,230.81,8.05]
[1759714056718,1.25093035,230.91,230.85,3.8973]
[1759714057118,6.03,230.87,230.81,3.898]
[1759714057320,60.6029,230.95,230.76,8.05]
[1759714057321,6.03,230.84,230.76,8.05]
[1759714057514,82.2,230.83,230.77,3.38646377]
[1759714057716,82.2,230.83,230.76,8.05]
[1759714057915,82.2,230.83,230.77,3.38704852]
[1759714058219,82.2,230.83,230.76,8.05]
[1759714058420,82.2,230.83,230.77,3.38752457]
[1759714058622,6.03,230.82,230.79,3.8983]
[1759714059017,1.25093035,230.82,230.79,3.8983]
[1759714059222,6.03,230.81,230.76,8.05]
[1759714059521,109.48,230.8,230.77,3.38867763]
[1759714059820,109.48,230.8,230.76,8.05]
[1759714060118,109.48,230.8,230.77,3.38929635]
[1759714060325,109.48,230.8,230.73,8.05]
[1759714060621,109.48,230.8,230.74,3.39002072]
[1759714060823,109.48,230.8,230.75,11.44002072]
[1759714061020,109.48,230.8,230.77,3.8986]
[1759714061325,1.25093035,230.79,230.7,64.25075046]
[1759714061525,1.25093035,230.79,230.71,11.44091524]
[1759714061818,7.28093035,230.79,230.74,3.8991]
[1759714062019,6.03,230.78,230.71,8.05]
[1759714062213,1.25093035,230.76,230.72,3.39116484]
[1759714062415,7.28093035,230.76,230.71,8.05]
[1759714062627,6.03,230.75,230.66,11.63555046]
[1759714062919,113.3783,230.8,230.71,68.7136]
[1759714062920,1.25093035,230.8,230.71,68.7136]
[1759714063123,1.25093035,230.8,230.73,8.05]
[1759714063124,44.24,230.8,230.73,8.05]
[1759714063324,44.24,230.8,230.74,3.39303435]
[1759714063523,44.24,230.8,230.75,11.44303435]
[1759714063718,44.24,230.8,230.75,8.05]
[1759714064119,1.25093035,230.8,230.7,8.05]
[1759714064321,50.42,230.79,230.71,3.39295474]
[1759714064520,50.42,230.79,230.72,3.39295474]
[1759714064718,1.25093035,230.8,230.76,3.8989]
[1759714064926,66.34,230.79,230.7,72.30105046]
[1759714065127,66.34,230.79,230.71,3.39312522]
[1759714065428,66.34,230.79,230.72,3.39312522]
[1759714065628,1.25093035,230.77,230.73,3.39312522]
[1759714065928,1.25093035,230.77,230.75,3.8991]
[1759714066225,109.58,230.78,230.76,3.3937015]
[1759714066426,109.58,230.78,230.75,3.8991]
[1759714067017,109.58,230.78,230.72,11.9495]
[1759714067222,109.54,230.77,230.73,3.39544342]
[1759714067422,109.54,230.77,230.74,3.39544342]
[1759714067625,115.57,230.77,230.75,3.39544342]
[1759714067827,115.57,230.77,230.71,8.05]
[1759714068026,1.25093035,230.72,230.69,3.58555046]
[1759714068219,112.85,230.71,230.61,3.58555046]
[1759714068529,1.25093035,230.65,230.59,11.50555046]
[1759714068822,1.25093035,230.66,230.59,7.92]
[1759714069128,110.34,230.65,230.59,7.92]
[1759714069828,110.32,230.64,230.58,7.92]
[1759714070327,110.32,230.64,230.62,7.92]
[1759714071618,2.65,230.68,230.63,3.9011]
[1759714071818,110.26,230.67,230.63,3.9011]
[1759714072419,318.01,230.73,230.65,3.9007]
[1759714072632,110.22,230.72,230.64,60.6822]
[1759714072927,110.24,230.71,230.64,60.6822]
[1759714073632,110.24,230.7,230.68,3.9002]